fUST/lending_fUST_20240613
["ID","MTS","AMOUNT","RATE_DAILY","PERIOD"]
[329287338,1718217051742,-500.0,0.00018356,2]
[329287341,1718217051753,-151.0,0.00018356,2]
[329287343,1718217051764,-656.64,0.00018356,2]
[329287345,1718217051775,-1844.56,0.00018356,2]
[329287347,1718217051785,-679.68,0.00018356,2]
[329287349,1718217051795,-155.0,0.0001849,2]
[329287351,1718217051807,-606.91207968,0.000185,2]
[329287353,1718217051818,-151.0,0.00018501,2]
[329287355,1718217051829,-153.0,0.00018548,2]
[329287357,1718217051839,-153.0,0.00018548,2]
[329287359,1718217051849,-153.0,0.00018548,2]
[329287361,1718217051859,-153.0,0.00018548,2]
[329287363,1718217051869,-153.0,0.00018548,2]
[329287365,1718217051879,-153.0,0.00018548,2]
[329287367,1718217051890,-153.0,0.00018548,2]
[329287369,1718217051900,-153.0,0.00018548,2]
[329287371,1718217051910,-153.0,0.00018548,2]
[329287373,1718217051921,-153.0,0.00018548,2]
[329287375,1718217051931,-153.0,0.00018548,2]
[329287377,1718217051944,-153.0,0.00018548,2]
[329287379,1718217051954,-166.666666,0.00018575,2]
[329287381,1718217051964,-751.62,0.00018629,2]
[329287383,1718217051974,-1212.83,0.00018629,2]
[329287385,1718217051985,-1212.83,0.00018629,2]
[329287387,1718217051995,-1212.83,0.00018629,2]
[329287389,1718217052005,-1212.83,0.00018629,2]
[329287391,1718217052016,-1212.89417536,0.00018629,2]
[329287394,1718217052026,-500.0,0.0001863,2]
[329287396,1718217052037,-500.0,0.0001863,2]
[329287398,1718217052046,-500.0,0.0001863,2]
[329287400,1718217052056,-651.69,0.0001863,2]
[329287402,1718217052067,-500.0,0.0001863,2]
[329287404,1718217052078,-605.94,0.0001863,2]
[329287406,1718217052089,-868.34,0.0001863,2]
[329287408,1718217052103,-500.0,0.0001863,2]
[329287410,1718217052113,-500.0,0.0001863,2]
[329287412,1718217052124,-500.0,0.0001863,2]
[329287414,1718217052135,-856.25,0.0001863,2]
[329287416,1718217052146,-663.84,0.0001863,2]
[329287418,1718217052156,-151.0,0.0001863,2]
[329287420,1718217052166,-196.875606,0.0001863,2]
[329287422,1718217052177,-1133.5,0.0001863,2]
[329287424,1718217052188,-500.0,0.0001863,2]
[329287426,1718217052198,-159.57116,0.0001863,2]
[329287428,1718217052209,-500.0,0.0001863,2]
[329287430,1718217052220,-205.074071,0.0001863,2]
[329287432,1718217052231,-205.074071,0.0001863,2]
[329287434,1718217052242,-151.0,0.0001863,2]
[329287436,1718217052253,-500.0,0.0001863,2]
[329287438,1718217052264,-270.3875282,0.0001863,4]
[329287440,1718217052275,-517.7,0.0001863,2]
[329287442,1718217052285,-184.12532,0.0001863,2]
[329287443,1718217052296,-5518.9,0.0001863,2]
[329287445,1718217052307,-994.21,0.0001863,2]
[329287447,1718217052317,-184.12532,0.0001863,2]
[329287448,1718217052332,-668.97,0.0001863,2]
[329287450,1718217052342,-3300.23,0.0001863,2]
[329287452,1718217052353,-500.76,0.0001863,2]
[329287454,1718217052365,-873.36,0.0001863,2]
[329287464,1718217052487,-661.98,0.0001863,2]
[329287466,1718217052501,-1071.37,0.0001863,2]
[329287468,1718217052512,-500.0,0.0001863,2]
[329287470,1718217052522,-500.0,0.0001863,2]
[329287472,1718217052534,-500.0,0.0001863,2]
[329287474,1718217052544,-6760.55,0.0001863,2]
[329287476,1718217052555,-7470.72,0.0001863,2]
[329287478,1718217052567,-1970.83,0.0001863,2]
[329287480,1718217052577,-500.0,0.0001863,2]
[329287482,1718217052588,-2991.13,0.0001863,2]
[329287484,1718217052598,-151.0,0.0001863,2]
[329287485,1718217052608,-696.89,0.0001863,2]
[329287488,1718217052619,-500.0,0.0001863,2]
[329287490,1718217052630,-718.81,0.0001863,2]
[329287492,1718217052650,-151.0,0.0001863,2]
[329287494,1718217052661,-978.46,0.0001863,2]
[329287496,1718217052672,-6356.09,0.0001863,2]
[329287498,1718217052684,-280.057456,0.0001863,2]
[329287500,1718217052696,-280.057456,0.0001863,2]
[329287502,1718217052707,-560.5,0.0001863,2]
[329287504,1718217052718,-282.32,0.0001863,2]
[329287506,1718217052728,-861.01,0.0001863,2]
[329287508,1718217052739,-1062.73,0.0001863,2]
[329287510,1718217052750,-500.0,0.0001863,2]
[329287512,1718217052762,-514.87,0.0001863,2]
[329287514,1718217052772,-151.0,0.0001863,2]
[329287516,1718217052782,-1892.82,0.0001863,2]
[329287518,1718217052792,-500.0,0.0001863,2]
[329287520,1718217052803,-324.358221,0.0001863,2]
[329287522,1718217052813,-500.0,0.0001863,2]
[329287524,1718217052824,-151.0,0.0001863,2]
[329287526,1718217052835,-324.358221,0.0001863,2]
[329287528,1718217052846,-1472.89,0.0001863,2]
[329287530,1718217052857,-372.11,0.0001863,2]
[329287532,1718217052868,-151.0,0.0001863,2]
[329287534,1718217052879,-760.96,0.0001863,2]
[329287536,1718217052890,-151.0,0.0001863,2]
[329287538,1718217052902,-500.0,0.0001863,2]
[329287540,1718217052913,-656.64,0.0001863,2]
[329287542,1718217052923,-1844.56,0.0001863,2]
[329287544,1718217052934,-679.68,0.0001863,2]
[329287546,1718217052946,-250.0,0.0001863,2]
[329287548,1718217052956,-823.0,0.00018699,2]
[329287550,1718217052968,-744.96989,0.00018714,2]
[329287552,1718217052979,-151.0,0.00018715,2]
[329287554,1718217052990,-153.0,0.00018722,2]
[329287556,1718217053000,-153.0,0.00018722,2]
[329287558,1718217053012,-153.0,0.00018722,2]
[329287560,1718217053024,-153.0,0.00018722,2]
[329287562,1718217053034,-153.0,0.00018722,2]
[329287564,1718217053045,-5831.43058346,0.00018899,2]
[329287566,1718217053055,-5154.07753911,0.000189,2]
[329287568,1718217053065,-751.62,0.00018903,2]
[329287570,1718217053076,-500.0,0.00018904,2]
[329287572,1718217053086,-500.0,0.00018904,2]
[329287574,1718217053096,-175.36014672,0.00018904,2]
[329287576,1718217053107,-651.69,0.00018904,2]
[329287578,1718217053117,-500.0,0.00018904,2]
[329287580,1718217053126,-605.94,0.00018904,2]
[329287582,1718217053136,-868.34,0.00018904,2]
[329287584,1718217053147,-500.0,0.00018904,2]
[329287586,1718217053157,-500.0,0.00018904,2]
[329287588,1718217053167,-153.66282,0.00018904,2]
[329287590,1718217053177,-151.0,0.00018904,2]
[329287592,1718217053189,-500.0,0.00018904,2]
[329287594,1718217053198,-856.25,0.00018904,2]
[329287596,1718217053208,-151.0,0.00018904,2]
[329287598,1718217053218,-663.84,0.00018904,2]
[329287600,1718217053228,-151.0,0.00018904,2]
[329287602,1718217053238,-1133.5,0.00018904,2]
[329287603,1718217053248,-500.0,0.00018904,2]
[329287605,1718217053258,-500.0,0.00018904,2]
[329287607,1718217053268,-517.7,0.00018904,2]
[329287610,1718217053279,-5518.9,0.00018904,2]
[329287612,1718217053289,-994.21,0.00018904,2]
[329287614,1718217053301,-668.97,0.00018904,2]
[329287616,1718217053311,-3300.23,0.00018904,2]
[329287618,1718217053320,-151.0,0.00018904,2]
[329287620,1718217053332,-151.0,0.00018904,2]
[329287622,1718217053342,-151.0,0.00018904,2]
[329287624,1718217053353,-873.36,0.00018904,2]
[329287626,1718217053364,-151.0,0.00018904,2]
[329287628,1718217053375,-236.427274,0.00018904,2]
[329287630,1718217053385,-661.98,0.00018904,2]
[329287632,1718217053395,-1071.37,0.00018904,2]
[329287634,1718217053405,-539.86381427,0.00018904,2]
[329287636,1718217053416,-151.0,0.00018904,2]
[329287638,1718217053426,-638.83821086,0.00018904,2]
[329287640,1718217053438,-500.0,0.00018904,2]
[329287642,1718217053448,-151.0,0.00018904,2]
[329287644,1718217053459,-6760.55,0.00018904,2]
[329287646,1718217053469,-7470.72,0.00018904,2]
[329287648,1718217053482,-1970.83,0.00018904,2]
[329287650,1718217053493,-500.0,0.00018904,2]
[329287652,1718217053504,-2991.13,0.00018904,2]
[329287654,1718217053514,-219.763647,0.00018904,2]
[329287656,1718217053526,-219.763647,0.00018904,2]
[329287658,1718217053537,-696.89,0.00018904,2]
[329287660,1718217053547,-617.86,0.00018904,2]
[329287661,1718217053557,-718.81,0.00018904,2]
[329287662,1718217053569,-978.46,0.00018904,2]
[329287663,1718217053581,-6356.09,0.00018904,2]
[329287664,1718217053591,-560.5,0.00018904,2]
[329287665,1718217053602,-861.01,0.00018904,2]
[329287666,1718217053613,-1062.73,0.00018904,2]
[329287667,1718217053624,-500.0,0.00018904,2]
[329287668,1718217053635,-514.87,0.00018904,2]
[329287669,1718217053655,-1892.82,0.00018904,2]
[329287670,1718217053667,-500.0,0.00018904,2]
[329287671,1718217053678,-532.72,0.00018904,2]
[329287673,1718217053691,-1472.89,0.00018904,2]
[329287675,1718217053701,-760.96,0.00018904,2]
[329287677,1718217053713,-500.0,0.00018904,2]
[329287679,1718217053723,-151.0,0.00018904,2]
[329287680,1718217053734,-656.64,0.00018904,2]
[329287682,1718217053745,-1844.56,0.00018904,2]
[329287684,1718217053756,-679.68,0.00018904,2]
[329287686,1718217053767,-151.0,0.00018929,2]
[329287688,1718217053779,-151.0,0.00018929,2]
[329287690,1718217053789,-1750.0,0.00018957,2]
[329287692,1718217053801,-499.0,0.00018957,2]
[329287694,1718217053813,-163.14541634,0.00019,2]
[329287696,1718217053824,-7270.73643792,0.00019,2]
[329287698,1718217053835,-1028.14988982,0.00019061,2]
[329287700,1718217053850,-1437.79624523,0.000191,2]
[329287702,1718217053863,-800.0,0.000191,3]
[329287704,1718217053875,-5281.92082876,0.00019128,2]
[329287706,1718217053887,-151.0,0.00019143,2]
[329287708,1718217053898,-151.0,0.00019143,2]
[329287710,1718217053909,-724.01301029,0.00019177,2]
[329287712,1718217053919,-751.62,0.00019177,2]
[329287714,1718217053930,-499.63710141,0.00019178,2]
[329287716,1718217053940,-500.0,0.00019178,2]
[329287718,1718217053950,-432.22617188,0.00019178,2]
[329287720,1718217053961,-230.94930506,0.00019178,2]
[329287722,1718217053971,-567.49236527,0.00019178,2]
[329287724,1718217053982,-500.0,0.00019178,2]
[329287726,1718217053992,-500.0,0.00019178,2]
[329287728,1718217054002,-500.0,0.00019178,2]
[329287730,1718217054012,-500.0,0.00019178,2]
[329287732,1718217054023,-500.0,0.00019178,2]
[329287734,1718217054033,-287.79571924,0.00019178,2]
[329287736,1718217054044,-637.80797361,0.00019178,2]
[329287738,1718217054054,-500.0,0.00019178,2]
[329287740,1718217054064,-500.0,0.00019178,2]
[329287742,1718217054074,-627.34509852,0.00019178,2]
[329287743,1718217054084,-500.0,0.00019178,2]
[329287745,1718217054094,-500.0,0.00019178,2]
[329287747,1718217054103,-500.0,0.00019178,2]
[329287749,1718217054113,-455.08490941,0.00019178,2]
[329287751,1718217054123,-500.0,0.00019178,2]
[329287753,1718217054133,-500.0,0.00019178,2]
[329287755,1718217054144,-500.0,0.00019178,2]
[329287757,1718217054155,-500.0,0.00019178,2]
[329287759,1718217054165,-500.0,0.00019178,2]
[329287761,1718217054175,-500.0,0.00019178,2]
[329287763,1718217054185,-500.0,0.00019178,2]
[329287765,1718217054197,-500.0,0.00019178,2]
[329287767,1718217054208,-500.0,0.00019178,2]
[329287769,1718217054218,-500.0,0.00019178,2]
[329287771,1718217054228,-500.0,0.00019178,2]
[329287773,1718217054238,-500.0,0.00019178,2]
[329287775,1718217054248,-500.0,0.00019178,2]
[329287777,1718217054258,-500.0,0.00019178,2]
[329287779,1718217054268,-500.0,0.00019178,2]
[329287781,1718217054278,-500.0,0.00019178,2]
[329287783,1718217054288,-500.0,0.00019178,2]
[329287785,1718217054297,-500.0,0.00019178,2]
[329287787,1718217054307,-500.0,0.00019178,2]
[329287789,1718217054317,-500.0,0.00019178,2]
[329287790,1718217054327,-500.0,0.00019178,2]
[329287792,1718217054337,-500.0,0.00019178,2]
[329287794,1718217054347,-500.0,0.00019178,2]
[329287796,1718217054357,-500.0,0.00019178,2]
[329287798,1718217054367,-500.0,0.00019178,2]
[329287800,1718217054377,-500.0,0.00019178,2]
[329287802,1718217054387,-500.0,0.00019178,2]
[329287804,1718217054397,-500.0,0.00019178,2]
[329287806,1718217054407,-771.55965176,0.00019178,2]
[329287808,1718217054418,-771.55965176,0.00019178,2]
[329287810,1718217054427,-771.55965176,0.00019178,2]
[329287812,1718217054437,-771.55965176,0.00019178,2]
[329287814,1718217054448,-771.55965176,0.00019178,2]
[329287816,1718217054458,-771.55965176,0.00019178,2]
[329287818,1718217054467,-771.55965176,0.00019178,2]
[329287820,1718217054478,-771.55965176,0.00019178,2]
[329287822,1718217054489,-771.55965176,0.00019178,2]
[329287824,1718217054500,-770.23314008,0.00019178,2]
[329287869,1718217054990,-500.0,0.00016438,2]
[329287871,1718217055000,-500.0,0.00016438,2]
[329287872,1718217055012,-491.36308645,0.00016712,2]
[329287874,1718217055023,-1248.73186427,0.00017571,2]
[329287876,1718217055034,-1404.21,0.00017808,2]
[329287878,1718217055045,-1248.73186427,0.00017982,2]
[329287881,1718217055065,-1404.21,0.00018082,2]
[329287884,1718217055088,-1404.21,0.00018356,2]
[329287886,1718217055100,-1404.21,0.0001863,2]
[329287888,1718217055114,-1404.21,0.00018904,2]
[329287890,1718217055125,-1.32651168,0.00019178,2]
[329287892,1718217055136,-771.55965176,0.00019178,2]
[329287894,1718217055147,-771.55965176,0.00019178,2]
[329287895,1718217055157,-771.55965176,0.00019178,2]
[329287897,1718217055167,-771.55965176,0.00019178,2]
[329287899,1718217055178,-771.55965176,0.00019178,2]
[329287901,1718217055190,-771.55965176,0.00019178,2]
[329287903,1718217055201,-771.55965176,0.00019178,2]
[329287905,1718217055212,-771.55965176,0.00019178,2]
[329287907,1718217055222,-771.55965176,0.00019178,2]
[329287909,1718217055233,-771.55965176,0.00019178,2]
[329287911,1718217055245,-771.55965176,0.00019178,2]
[329287912,1718217055258,-771.55965176,0.00019178,2]
[329287914,1718217055268,-771.55965176,0.00019178,2]
[329287916,1718217055280,-771.55965176,0.00019178,2]
[329287918,1718217055292,-771.55965176,0.00019178,2]
[329287920,1718217055302,-771.55965176,0.00019178,2]
[329287922,1718217055314,-771.55965176,0.00019178,2]
[329287924,1718217055326,-759.98625698,0.00019178,2]
[329287927,1718217055337,-759.98625698,0.00019178,2]
[329287928,1718217055348,-759.98625698,0.00019178,2]
[329287930,1718217055360,-759.98625698,0.00019178,2]
[329287932,1718217055370,-759.98625698,0.00019178,2]
[329287934,1718217055380,-759.98625698,0.00019178,2]
[329287936,1718217055391,-759.98625698,0.00019178,2]
[329287938,1718217055403,-759.98625698,0.00019178,2]
[329287940,1718217055414,-759.98625698,0.00019178,2]
[329287942,1718217055425,-759.98625698,0.00019178,2]
[329287944,1718217055436,-500.0,0.00019178,2]
[329287946,1718217055449,-814.27098958,0.00019178,2]
[329287948,1718217055460,-500.0,0.00019178,2]
[329287950,1718217055471,-651.69,0.00019178,2]
[329287952,1718217055485,-500.0,0.00019178,2]
[329287954,1718217055496,-151.0,0.00019178,2]
[329287956,1718217055509,-151.0,0.00019178,2]
[329287958,1718217055519,-151.0,0.00019178,2]
[329287971,1718217055667,-605.94,0.00019178,2]
[329287973,1718217055680,-151.0,0.00019178,2]
[329287975,1718217055695,-868.34,0.00019178,2]
[329287977,1718217055706,-500.0,0.00019178,2]
[329287979,1718217055717,-500.0,0.00019178,2]
[329287981,1718217055727,-500.0,0.00019178,2]
[329287983,1718217055738,-856.25,0.00019178,2]
[329287985,1718217055749,-663.84,0.00019178,2]
[329287988,1718217055760,-151.0,0.00019178,2]
[329287989,1718217055771,-1133.5,0.00019178,2]
[329287991,1718217055782,-500.0,0.00019178,2]
[329287993,1718217055793,-500.0,0.00019178,2]
[329287995,1718217055804,-205.074071,0.00019178,2]
[329287997,1718217055816,-205.074071,0.00019178,2]
[329287999,1718217055829,-517.7,0.00019178,2]
[329288001,1718217055840,-184.12532,0.00019178,2]
[329288003,1718217055854,-5518.9,0.00019178,2]
[329288005,1718217055865,-184.12532,0.00019178,2]
[329288007,1718217055876,-994.21,0.00019178,2]
[329288009,1718217055888,-668.97,0.00019178,2]
[329288011,1718217055902,-3300.23,0.00019178,2]
[329288013,1718217055913,-873.36,0.00019178,2]
[329288015,1718217055923,-661.98,0.00019178,2]
[329288017,1718217055934,-1071.37,0.00019178,2]
[329288019,1718217055948,-151.0,0.00019178,2]
[329288021,1718217055958,-500.0,0.00019178,2]
[329288023,1718217055968,-151.0,0.00019178,2]
[329288025,1718217055979,-6492.92461545,0.00019178,2]
[329288027,1718217055995,-267.62538455,0.00019178,2]
[329288029,1718217056005,-7007.67481401,0.00019178,2]
[329288032,1718217056019,-463.04518599,0.00019178,2]
[329288034,1718217056030,-1970.83,0.00019178,2]
[329288036,1718217056043,-500.0,0.00019178,2]
[329288038,1718217056056,-2991.13,0.00019178,2]
[329288040,1718217056069,-219.763647,0.00019178,2]
[329288042,1718217056081,-219.763647,0.00019178,2]
[329288044,1718217056092,-151.0,0.00019178,2]
[329288046,1718217056103,-565.21207201,0.00019178,2]
[329288048,1718217056118,-131.67792799,0.00019178,2]
[329288050,1718217056129,-718.81,0.00019178,2]
[329288052,1718217056141,-151.0,0.00019178,2]
[329288054,1718217056152,-978.46,0.00019178,2]
[329288056,1718217056165,-1115.57600332,0.00019178,2]
[329288058,1718217056182,-5240.51399668,0.00019178,2]
[329288060,1718217056197,-280.057456,0.00019178,2]
[329288062,1718217056209,-280.057456,0.00019178,2]
[329288064,1718217056220,-560.5,0.00019178,2]
[329288066,1718217056232,-861.01,0.00019178,2]
[329288068,1718217056243,-1062.73,0.00019178,2]
[329288070,1718217056254,-500.0,0.00019178,2]
[329288072,1718217056265,-514.87,0.00019178,2]
[329288074,1718217056277,-151.0,0.00019178,2]
[329288076,1718217056288,-570.45672372,0.00019178,2]
[329288344,1718217283533,155.00310006,9.999e-05,2]
[329288345,1718217310907,19310.35826996,9.999e-05,2]
[329288348,1718217487774,156.97954424,9.999e-05,2]
[329288350,1718217584964,164.5734904,9.999e-05,2]
[329288355,1718217929248,156.97954424,9.999e-05,2]
[329288356,1718218027605,164.5734904,9.999e-05,2]
[329288389,1718218239347,-156.97954424,0.00015141,2]
[329288390,1718218239358,-164.5734904,0.00015142,2]
[329288392,1718218239371,-300.0,0.00015146,2]
[329288394,1718218239382,-378.08385975,0.00015147,2]
[329288396,1718218239395,-11452.88432175,0.00015147,2]
[329288398,1718218239404,-3452.50305617,0.00016,3]
[329288399,1718218239414,-183.57544719,0.00016338,2]
[329288400,1718218239425,-207.17413057,0.00016434,2]
[329288405,1718218239582,-155.01240099,0.00016434,2]
[329288407,1718218239597,-235.49923282,0.00016434,2]
[329288408,1718218239609,-286.07734322,0.00016434,2]
[329288410,1718218239622,-1995.59270983,0.00016434,2]
[329288412,1718218239636,-9592.69620331,0.00016434,2]
[329288413,1718218239648,-524.19655516,0.00016434,2]
[329288414,1718218239659,-692.26255018,0.00016434,2]
[329288415,1718218239673,-285.76830085,0.00016434,2]
[329288416,1718218239684,-520.30892496,0.00016434,2]
[329288417,1718218239697,-232.26809921,0.00016434,2]
[329288418,1718218239710,-2037.00298008,0.00016435,2]
[329288420,1718218239724,-1673.96605746,0.00016436,2]
[329288422,1718218239741,-161.63330857,0.00016436,2]
[329288424,1718218239752,-164.68563506,0.00016436,2]
[329288425,1718218239763,-724.01301029,0.00016436,2]
[329288426,1718218239774,-273.78628196,0.00016436,2]
[329288427,1718218239785,-156.17906786,0.00016436,2]
[329288428,1718218239800,-5831.43058346,0.00016436,2]
[329288429,1718218239812,-13132.31188655,0.00016436,2]
[329288430,1718218239825,-1780.75143039,0.00016436,2]
[329288431,1718218239840,-1824.61520915,0.00016436,2]
[329288432,1718218239891,-19690.41013976,0.00016436,2]
[329288433,1718218239903,-2970.4492641,0.00016437,4]
[329288434,1718218239916,-149.74669693,0.00016437,4]
[329288435,1718218239927,-500.0,0.00016438,2]
[329288436,1718218239941,-611.10775946,0.00016438,2]
[329288437,1718218239953,-500.0,0.00016438,2]
[329288438,1718218239964,-500.0,0.00016438,2]
[329288439,1718218239974,-500.0,0.00016438,2]
[329288440,1718218239985,-500.0,0.00016438,2]
[329288441,1718218239998,-501.06033171,0.00016438,2]
[329288442,1718218240009,-500.0,0.00016438,2]
[329288443,1718218240020,-500.0,0.00016438,2]
[329288444,1718218240032,-500.0,0.00016438,2]
[329288445,1718218240042,-455.19450785,0.00016438,2]
[329288446,1718218240062,-500.0,0.00016438,2]
[329288447,1718218240077,-500.0,0.00016438,2]
[329288449,1718218240091,-328.49690836,0.00016438,2]
[329288450,1718218240107,-500.0,0.00016438,2]
[329288451,1718218240120,-500.0,0.00016438,2]
[329288452,1718218240140,-500.0,0.00016438,2]
[329288453,1718218240159,-500.0,0.00016438,2]
[329288454,1718218240171,-500.0,0.00016438,2]
[329288455,1718218240184,-500.0,0.00016438,2]
[329288456,1718218240196,-500.0,0.00016438,2]
[329288457,1718218240206,-500.0,0.00016438,2]
[329288458,1718218240219,-418.44223584,0.00016438,2]
[329288459,1718218240231,-500.0,0.00016438,2]
[329288460,1718218240244,-500.0,0.00016438,2]
[329288461,1718218240255,-500.0,0.00016438,2]
[329288462,1718218240270,-527.03484226,0.00016438,2]
[329288463,1718218240286,-302.88326195,0.00016438,2]
[329288464,1718218240310,-197.11673805,0.00016438,2]
[329288465,1718218240335,-500.0,0.00016438,2]
[329288466,1718218240351,-532.16962982,0.00016438,2]
[329288467,1718218240364,-500.0,0.00016438,2]
[329288468,1718218240378,-563.45,0.00016438,2]
[329288469,1718218240389,-563.45,0.00016438,2]
[329288470,1718218240400,-563.45,0.00016438,2]
[329288471,1718218240411,-563.45,0.00016438,2]
[329288472,1718218240422,-563.45,0.00016438,2]
[329288473,1718218240437,-502.77358706,0.00016438,2]
[329288474,1718218240448,-505.00040707,0.00016438,2]
[329288475,1718218240459,-157.23325445,0.00016438,2]
[329288476,1718218240470,-500.0,0.00016438,2]
[329288477,1718218240481,-500.0,0.00016438,2]
[329288478,1718218240493,-500.0,0.00016438,2]
[329288479,1718218240505,-503.78967618,0.00016438,2]
[329288480,1718218240520,-501.02092364,0.00016438,2]
[329288481,1718218240533,-544.54742684,0.00016438,2]
[329288482,1718218240546,-502.0093018,0.00016438,2]
[329288483,1718218240556,-544.08327368,0.00016438,2]
[329288484,1718218240576,-500.0,0.00016438,2]
[329288485,1718218240589,-500.0,0.00016438,2]
[329288486,1718218240606,-510.13328018,0.00016438,2]
[329288487,1718218240622,-500.0,0.00016438,2]
[329288488,1718218240633,-500.0,0.00016438,2]
[329288489,1718218240646,-714.94,0.00016438,2]
[329288490,1718218240659,-500.0,0.00016438,2]
[329288491,1718218240672,-500.0,0.00016438,2]
[329288492,1718218240685,-500.0,0.00016438,2]
[329288493,1718218240697,-500.0,0.00016438,2]
[329288494,1718218240708,-500.0,0.00016438,2]
[329288495,1718218240721,-500.0,0.00016438,2]
[329288496,1718218240732,-619.2,0.00016438,2]
[329288497,1718218240743,-524.11930544,0.00016438,2]
[329288498,1718218240754,-500.0,0.00016438,2]
[329288499,1718218240764,-504.54131382,0.00016438,2]
[329288500,1718218240775,-500.0,0.00016438,2]
[329288501,1718218240787,-500.0,0.00016438,2]
[329288502,1718218240798,-500.0,0.00016438,2]
[329288503,1718218240809,-500.0,0.00016438,2]
[329288504,1718218240821,-500.0,0.00016438,2]
[329288505,1718218240832,-500.0,0.00016438,2]
[329288506,1718218240844,-500.0,0.00016438,2]
[329288507,1718218240864,-500.0,0.00016438,2]
[329288508,1718218240875,-500.0,0.00016438,2]
[329288509,1718218240887,-500.0,0.00016438,2]
[329288510,1718218240899,-500.0,0.00016438,2]
[329288511,1718218240909,-500.0,0.00016438,2]
[329288512,1718218240921,-500.0,0.00016438,2]
[329288513,1718218240932,-500.0,0.00016438,2]
[329288514,1718218240943,-500.0,0.00016438,2]
[329288515,1718218240955,-500.0,0.00016438,2]
[329288516,1718218240965,-500.0,0.00016438,4]
[329288517,1718218240976,-500.0,0.00016438,2]
[329288518,1718218240987,-628.72,0.00016438,2]
[329288519,1718218240998,-500.0,0.00016438,2]
[329288520,1718218241009,-500.0,0.00016438,2]
[329288521,1718218241019,-845.56,0.00016438,2]
[329288522,1718218241030,-500.0,0.00016438,2]
[329288523,1718218241041,-500.0,0.00016438,2]
[329288524,1718218241062,-500.0,0.00016438,2]
[329288525,1718218241075,-500.0,0.00016438,2]
[329288526,1718218241086,-500.0,0.00016438,2]
[329288527,1718218241100,-500.0,0.00016438,2]
[329288528,1718218241110,-500.0,0.00016438,2]
[329288529,1718218241121,-520.73724395,0.00016438,2]
[329288530,1718218241133,-500.0,0.00016438,2]
[329288531,1718218241144,-250.0,0.00016438,2]
[329288532,1718218241158,-500.0,0.00016438,2]
[329288533,1718218241170,-500.0,0.00016438,2]
[329288534,1718218241181,-500.0,0.00016438,2]
[329288535,1718218241192,-500.0,0.00016438,2]
[329288536,1718218241203,-500.0,0.00016438,2]
[329288537,1718218241214,-500.0,0.00016438,2]
[329288538,1718218241225,-500.0,0.00016438,2]
[329288539,1718218241236,-500.0,0.00016438,2]
[329288540,1718218241248,-500.0,0.00016438,2]
[329288541,1718218241259,-259.67689488,0.00016438,2]
[329288542,1718218241270,-500.0,0.00016438,2]
[329288543,1718218241281,-500.0,0.00016438,2]
[329288544,1718218241293,-500.0,0.00016438,2]
[329288545,1718218241305,-310.41976195,0.00016438,2]
[329288546,1718218241316,-503.25826338,0.00016438,2]
[329288547,1718218241327,-572.16711077,0.00016438,2]
[329288548,1718218241338,-500.0,0.00016438,2]
[329288549,1718218241351,-500.0,0.00016438,2]
[329288550,1718218241363,-500.0,0.00016438,2]
[329288551,1718218241374,-505.30895665,0.00016438,2]